Cogmind - Beta 17 @@@ ROGUE MODE // 2026.07.12 @ 00:30:31 Player: Zish Result: Self-destructed Performance ------------- Evolutions (0) 0 Regions Visited (4) 800 Robots Destroyed (20) 100 Value Destroyed (435) 435 Prototype IDs (4) 80 Alien Tech Used (0) 0 Bonus (0) 0 TOTAL SCORE: 1415 Bonus ------- None Cogmind --------- Core Integrity 150/250 Matter 181/300 Energy 100/100 System Corruption 5% Temperature Warm (111) Movement Treading (240) Ox1 Location -9/Mines Parts ------- > --- POWER (1) -------- (None) > --- PROPULSION (2) --- Light Treads > --- UTILITY (2) ------ Large Storage Unit Core Shielding > --- WEAPON (2) ------- (None) > --- INVENTORY (15) --- Light Nuclear Core Light Treads Light Treads Light Treads Light Treads Cesium-ion Thruster Improved Heat Sink Advanced Weight Redist. System Hacking Suite Improved Trap Extractor (0/6) Grenade Launcher Datajack Hammer Peak State ------------ > --- POWER ------------ Light Ion Engine > --- PROPULSION ------- Light Treads Light Treads > --- UTILITY ---------- Large Storage Unit Core Shielding > --- WEAPON ----------- Assault Rifle Assault Cannon > --- INVENTORY -------- Light Nuclear Core Light Treads Light Treads Light Treads Light Treads Cesium-ion Thruster Improved Heat Sink Hacking Suite Light Cannon Grenade Launcher Datajack Hammer [Rating: 11] Favorites ----------- Power Light Ion Engine Engine Light Ion Engine Propulsion Light Treads Treads Light Treads Utility Large Storage Unit Storage Large Storage Unit Protection Core Shielding Weapon Light Cannon Energy Gun EM Pulse Gun Ballistic Gun Assault Rifle Ballistic Cannon Light Cannon Special Melee Weapon Datajack Build | -11 -10 -10 -10 -9 ------- Run | Yrd Mat Min Exi Min Slots Evolved . | . . . . . Power . | . . . . . Propulsion . | . . . . . Utility . | . . . . . Weapon . | . . . . . Parts Attached 14 | 6 6 1 1 . Power 2 | 1 1 . . . Engine 2 | 1 1 . . . Core . | . . . . . Reactor . | . . . . . Propulsion 3 | 2 1 . . . Treads 3 | 2 1 . . . Leg . | . . . . . Wheel . | . . . . . Hover . | . . . . . Flight . | . . . . . Utility 3 | 1 2 . . . Device . | . . . . . Storage 2 | 1 1 . . . Processor . | . . . . . Hackware . | . . . . . Protection 1 | . 1 . . . Artifact . | . . . . . Weapon 6 | 2 2 1 1 . Energy Gun 1 | 1 . . . . Energy Cannon . | . . . . . Ballistic Gun 2 | 1 1 . . . Ballistic Cannon 2 | . 1 1 . . Launcher . | . . . . . Special Weapon . | . . . . . Impact Weapon . | . . . . . Slashing Weapon . | . . . . . Piercing Weapon . | . . . . . Special Melee Weapon 1 | . . . 1 . Unidentified Prototypes . | . . . . . Parts Lost 5 | . 1 . . 4 Power 2 | . 1 . . 1 Propulsion 1 | . . . . 1 Utility . | . . . . . Weapon 2 | . . . . 2 Highest Loss Streak 4 | . 1 . . 4 To Critical Strikes . | . . . . . Average Backups 8 | . 5 12 13 13 Power . | . . 1 1 1 Propulsion 2 | . 1 4 5 5 Utility 1 | . . 3 4 4 Weapon 1 | . 1 2 2 2 Tool/Special . | . . . . . Unused Backups 11 | . . . . 11 Power 1 | . . . . 1 Propulsion 4 | . . . . 4 Utility 4 | . . . . 4 Weapon 2 | . . . . 2 Tool/Special . | . . . . . Average Slot Usage (%) 94 | . 93 100 93 92 Engine 13 | . 13 14 14 11 Treads 27 | . 28 28 28 26 Storage 14 | . 14 14 14 14 Protection 10 | . 8 14 14 14 Energy Gun 3 | . 5 . . . Ballistic Gun 8 | . 14 5 . . Ballistic Cannon 13 | . 8 22 16 26 Special Melee Weapon 1 | . . . 5 . Peak Build Rating 11 | 6 8 11 11 11 Average Rating 8 | 4 6 9 9 10 On Entrance 7 | . 6 8 11 11 Avg Prop Armor Cover (%) . | . . . . . Naked Turns . | . . . . . Heaviest Build 32 | 12 29 32 32 32 Greatest Support 40 | 40 40 40 40 40 Greatest Overweight (x) 1 | . . . . 1 Average Overweight (x) . | . . . . . Largest Inventory Capacity 15 | 8 15 15 15 15 Average Capacity 13 | 7 13 15 15 15 Most Carried 15 | 1 9 14 15 13 Average Carried 8 | . 5 12 13 13 Final Capacity 15 | 8 15 15 15 15 Final Carried 14 | 1 9 14 13 13 Class Distribution -------------------- 100% | Mutant Dominant Class ---------------- Mutant | -10/Materials Mutant | -10/Mines Mutant | -10/Exiles Mutant | -9/Mines Resources | -11 -10 -10 -10 -9 ----------- Run | Yrd Mat Min Exi Min Matter Collected 586 | 208 331 44 . 3 Remotely . | . . . . . Salvage Created 589 | . 424 79 . 86 Parts 52 | . 39 5 . 8 Haulers Intercepted 2 | . 2 . . . Recyclers Shooed . | . . . . . Parts Field Recycled . | . . . . . Retrieved Matter . | . . . . . Parts Self-Destructed . | . . . . . Prevented . | . . . . . Parts Restored . | . . . . . Kills | -11 -10 -10 -10 -9 ------- Run | Yrd Mat Min Exi Min Combat Hostiles Destroyed 14 | . 11 2 . 1 Guns 5 | . 5 . . . Cannons 8 | . 5 2 . 1 AOE 1 | . 1 . . . Classes Destroyed 6 | . 5 . . 1 Hauler 2 | . 2 . . . Recycler 2 | . 1 . . 1 Operator 2 | . 2 . . . Swarmer 6 | . 6 . . . Grunt 7 | . 5 2 . . Demolisher 1 | . . . . 1 Best Kill Streak 5 | . 5 2 . 2 Combat Bots Only 4 | . 4 2 . 1 Max Kills in Single Turn 2 | . 2 1 . 1 Gunslinging . | . . . . . Exploded 1 | . 1 . . . Melee . | . . . . . Uniques/NPCs Destroyed . | . . . . . Combat | -11 -10 -10 -10 -9 -------- Run | Yrd Mat Min Exi Min Hostile Shots Fired 60 | . 44 1 . 15 Missed 7 | . 6 . . 1 Hits 53 | . 38 1 . 14 Projectile 53 | . 38 1 . 14 AOE 14 | . . . . 14 Damage Taken 932 | . 347 36 . 549 Core 100 | . 41 . . 59 Absorbed by Shields . | . . . . . Redirected to Shielding 15 | . 4 . . 11 Core Remaining (%) 100 | 100 . . . . Volleys Fired 49 | . 36 3 1 9 Largest 2 | . 2 2 2 2 Hottest 67 | . 60 50 67 67 Shots Fired 99 | . 72 7 2 18 Gun 54 | . 50 4 . . Cannon 45 | . 22 3 2 18 Launcher . | . . . . . Special . | . . . . . Kinetic 85 | . 58 7 2 18 Thermal . | . . . . . Explosive . | . . . . . Electromagnetic 14 | . 14 . . . Robot Hit Streak 6 | . 6 3 . 4 Robot Miss Streak 6 | . 6 3 . 3 Penetration Max . | . . . . . Secondary Targets 1 | . 1 . . . Max Gunslinging Chain 1 | . 1 . . . Shots Hit Robots 48 | . 36 3 . 9 Core Hits 29 | . 22 3 . 4 Critical Kills . | . . . . . Critical Parts Destroyed 1 | . 1 . . . Critical Strikes 2 | . 2 . . . Destroy 1 | . 1 . . . Corrupt 1 | . 1 . . . Melee Attacks . | . . . . . Impact . | . . . . . Slashing . | . . . . . Piercing . | . . . . . Sneak Attacks . | . . . . . Combat Hostiles . | . . . . . Follow-up Attacks . | . . . . . Damage Inflicted 843 | . 619 52 . 172 Guns 358 | . 343 15 . . Cannons 426 | . 217 37 . 172 Explosions 59 | . 59 . . . Melee . | . . . . . Ramming . | . . . . . Kinetic 696 | . 472 52 . 172 Thermal 59 | . 59 . . . Explosive . | . . . . . Electromagnetic 88 | . 88 . . . Impact . | . . . . . Slashing . | . . . . . Piercing . | . . . . . Highest Corruption 5 | . 5 5 5 5 Average Corruption 4 | . 4 5 5 5 Corruption Purged . | . . . . . Corruption Blocked . | . . . . . Effects 36 | . 16 6 9 5 Message Errors 10 | . 6 2 2 . Matter Fused 7 | . 4 . 1 2 Heat Flow Errors 6 | . 2 . 2 2 Energy Discharges 5 | . 2 2 . 1 Data Loss (minor) 3 | . 1 1 1 . Data Loss (major) 3 | . 1 . 2 . Misfires 1 | . . 1 . . Alerts 1 | . . . 1 . Overload Shots . | . . . . . Overflow Damage . | . . . . . Projectiles . | . . . . . Explosions . | . . . . . Melee . | . . . . . Knockbacks 3 | . . . . 3 Impact . | . . . . . Kinetic 3 | . . . . 3 Secondary . | . . . . . Self-Inflicted Damage . | . . . . . Shots . | . . . . . Rammed . | . . . . . Targets Rammed . | . . . . . Kicked . | . . . . . Crushed . | . . . . . Highest Temperature 360 | . 360 2 201 133 Average Temperature 119 | . 169 2 89 61 Received Heat Transfer 71 | . 45 6 . 20 Effects 2 | . 2 . . . Interference 2 | . 2 . . . Siege Activations . | . . . . . Martial Activations . | . . . . . Shielding Activations . | . . . . . Robots Disrupted . | . . . . . Combat Hostiles . | . . . . . Robots Corrupted . | . . . . . Combat Hostiles . | . . . . . Parts Fried . | . . . . . Impact Corruptions . | . . . . . Robots Melted . | . . . . . Combat Hostiles . | . . . . . Parts Melted . | . . . . . Heat Transferred 100 | . 100 . . . Parts Sabotaged . | . . . . . Parts Stolen . | . . . . . Parts Stripped . | . . . . . Power Chain Reactions 1 | . 1 . . . Alert | -11 -10 -10 -10 -9 ------- Run | Yrd Mat Min Exi Min Maximum Alert Level . | . . . . . Low Security (%) 100 | 100 100 100 . 100 Level 1 . | . . . . . Level 2 . | . . . . . Level 3 . | . . . . . Level 4 . | . . . . . Level 5 . | . . . . . High Security . | . . . . . Max Security . | . . . . . Peak Influence 82 | . 82 50 . 35 Initial . | . . . . . Average 22 | . 26 13 . 4 Influence Increases 425 | . 322 50 . 53 Destroy 0b10 Robot/C 280 | . 220 40 . 20 Destroy 0b10 Robot/NC 30 | . 25 . . 5 Destroy Leader 74 | . 54 10 . 10 Successful Hack 17 | . 17 . . . Disable Machine 15 | . . . . 15 Destroy Structure 9 | . 6 . . 3 Influence Decreases 425 | . 322 50 . 53 Time Decay 382 | . 312 50 . 20 Lost Part 43 | . 10 . . 33 Squads Dispatched 2 | . 2 . . . Investigation 1 | . 1 . . . Extermination . | . . . . . Reinforcement 1 | . 1 . . . Assault . | . . . . . Garrison . | . . . . . Intercept . | . . . . . Searches Triggered . | . . . . . Construction Impeded . | . . . . . Haulers Reinforced . | . . . . . Active Scanning Responses . | . . . . . Cargo Convoy Interrupts . | . . . . . Stealth | -11 -10 -10 -10 -9 --------- Run | Yrd Mat Min Exi Min Distress Signals 2 | . 2 . . . Communications Jammed . | . . . . . Distress Signals . | . . . . . Times Spotted 29 | . 19 2 . 8 Peak Tracking Total 7 | . 3 2 . 7 Tactical Retreats . | . . . . . Traps | -11 -10 -10 -10 -9 ------- Run | Yrd Mat Min Exi Min Traps Triggered 3 | . 3 . . . Indirectly . | . . . . . Trap Hack Attempts . | . . . . . Triggered . | . . . . . Disarmed . | . . . . . Reprogrammed . | . . . . . Reused . | . . . . . Traps Extracted . | . . . . . Installed . | . . . . . Triggered . | . . . . . Machines | -11 -10 -10 -10 -9 ---------- Run | Yrd Mat Min Exi Min Machines Disabled 2 | . 1 . . 1 Max in Single Turn 1 | . 1 . . 1 Machines Repaired . | . . . . . Machines Dismantled . | . . . . . Machines Sabotaged . | . . . . . Overloaded Fab Kills . | . . . . . Hacking | -11 -10 -10 -10 -9 --------- Run | Yrd Mat Min Exi Min Machines Accessed 9 | . 5 1 3 . Terminals 5 | . 5 . . . Fabricators . | . . . . . Repair Stations . | . . . . . Recycling Units . | . . . . . Scanalyzers . | . . . . . Garrison Access . | . . . . . Total Hacks 15 | . 11 1 3 . Successful 7 | . 3 1 3 . Failed 8 | . 8 . . . Catastrophic 3 | . 3 . . . Database Lockouts . | . . . . . Manual 10 | . 10 . . . Terminals 11 | . 11 . . . Fabricators . | . . . . . Repair Stations . | . . . . . Recycling Units . | . . . . . Scanalyzers . | . . . . . Garrison Access . | . . . . . Terminal Hacks 6 | . 2 1 3 . Record 3 | . . . 3 . Prototype ID Bank 2 | . 2 . . . Open Door 1 | . . 1 . . Fabricator Hacks . | . . . . . Repair Station Hacks . | . . . . . Recycling Unit Hacks . | . . . . . Scanalyzer . | . . . . . Garrison Access Hacks . | . . . . . Unauthorized Hacks 1 | . 1 . . . Terminals 1 | . 1 . . . Operators 1 | . 1 . . . Fabricators . | . . . . . Repair Stations . | . . . . . Recycling Units . | . . . . . Scanalyzers . | . . . . . Garrison Access . | . . . . . Data Cores Recovered 1 | . 1 . . . Used . | . . . . . Hacking Detections 3 | . 3 . . . Full Trace Events 2 | . 2 . . . Feedback Events . | . . . . . Feedback Blocked . | . . . . . Robot Schematics Acquired . | . . . . . Robots Built . | . . . . . Authchips . | . . . . . Time . | . . . . . Total Robot Build Rating . | . . . . . Part Schematics Acquired . | . . . . . Parts Built . | . . . . . Authchips . | . . . . . Time . | . . . . . Total Part Build Rating . | . . . . . Part Studies Acquired . | . . . . . Parts Repaired . | . . . . . Time . | . . . . . Parts Recycled . | . . . . . Recycled Matter . | . . . . . Retrieved Matter . | . . . . . Retrieved Components . | . . . . . Parts Scanalyzed . | . . . . . Part Schematics Acquired . | . . . . . Parts Damaged . | . . . . . Bothacking | -11 -10 -10 -10 -9 ------------ Run | Yrd Mat Min Exi Min Used RIF Installer . | . . . . . Robots Hacked . | . . . . . Non-combat . | . . . . . Combat . | . . . . . Robot Hacks Applied . | . . . . . Relay Couplers Released . | . . . . . Fabnet Peak Effective % . | . . . . . Robots Rewired . | . . . . . Allies Hacked . | . . . . . Hacks Repelled . | . . . . . Allies | -11 -10 -10 -10 -9 -------- Run | Yrd Mat Min Exi Min Total Allies . | . . . . . Largest Group . | . . . . . Highest-Rated Group . | . . . . . Highest-Rated Ally . | . . . . . Total Orders . | . . . . . Ally Attacks . | . . . . . Total Damage . | . . . . . Kills . | . . . . . Allies Corrupted . | . . . . . Allies Melted . | . . . . . Intel | -11 -10 -10 -10 -9 ------- Run | Yrd Mat Min Exi Min Active Infowar (turns) . | . . . . . Robot Analysis Total . | . . . . . Derelict Logs Recovered 1 | . . 1 . . Drone Launches . | . . . . . Drone Recoveries . | . . . . . Exploration | -11 -10 -10 -10 -9 ------------- Run | Yrd Mat Min Exi Min Turns Passed 2212 | 70 1218 202 596 126 Spaces Moved 1268 | 40 683 117 368 60 Core 3 | 3 . . . . Treads 1265 | 37 683 117 368 60 Legs . | . . . . . Wheels . | . . . . . Hover . | . . . . . Flight . | . . . . . Fastest Speed 50 | 50 160 160 160 160 Average Speed 159 | 151 160 160 160 164 Slowest Speed 240 | 160 160 160 160 240 Overloaded Moves . | . . . . . Propulsion Burnouts . | . . . . . Robots Hopped . | . . . . . Potential Cave-ins . | . . . . . Cave-ins Triggered . | . . . . . Exploration Rate (%) 42 | 4 87 27 78 16 Regions Visited 4 Branch Regions 3 Pre-discovered Areas 1 | . . 1 . . Known Exits Taken . | . . . . . Unknown Exits Taken 4 | 1 1 1 1 . Scrap Searched 1 | . . 1 . . Spaces Dug . | . . . . . Terrain Destroyed 7 | . 4 . . 3 Melee . | . . . . . Projectile 3 | . . . . 3 AOE 4 | . 4 . . . Terrain Rammed . | . . . . . Walls Destroyed . | . . . . . Machines Disabled . | . . . . . Actions | -11 -10 -10 -10 -9 --------- Run | Yrd Mat Min Exi Min Total 1351 | 46 735 126 375 69 Wait . | . . . . . Move 1264 | 39 682 116 367 60 Hop . | . . . . . Pick Up 13 | 1 8 4 . . Fast Attach 8 | 6 2 . . . Attach 5 | . 1 1 3 . Detach 5 | . 1 1 3 . Swap 4 | . 3 1 . . Drop 3 | . 2 . 1 . Fire 49 | . 36 3 1 9 Melee . | . . . . . Ram . | . . . . . Kick . | . . . . . Crush . | . . . . . Escape Stasis . | . . . . . Rewire . | . . . . . Trap . | . . . . . Miscellaneous . | . . . . . Route ------- -11/Scrapyard -10/Materials (discovered 3 exits: [*Mat x2] / *Min) -10/Mines -10/Exiles -9/Mines History --------- Turn | Location | Event 8 | -11/Scrapyard | Discovered new exit (range 15) 71 | -11/Scrapyard | Entered Materials 300 | -10/Materials | Build established: Mutant 459 | -10/Materials | Discovered new exit (range 9) 745 | -10/Materials | Discovered new exit (range 13) 978 | -10/Materials | Discovered new exit (range 5) 1289 | -10/Materials | Entered Mines 1344 | -10/Mines | Met a Derelict who couldn't figure out how to use a Trap Extractor 1483 | -10/Mines | Deemed a non-threat by the Exiles lab entrance 1485 | -10/Mines | Discovered new exit (range 5) 1491 | -10/Mines | Entered Exiles 1491 | -10/Exiles | Found Exiles lab abandoned 2064 | -10/Exiles | Discovered new exit (range 14) 2087 | -10/Exiles | Entered Mines 2157 | -9/Mines | Assembled infested the area 2213 | -9/Mines | Self-destructed Last Messages --------------- 02188_ D-53 Grenadier knocked back. 02188_ Lgt. Ion Engine destroyed. 02191_ Laser Drill disabled. 02193_ The unstable cave ceiling collapses. 02195_ System corrupted: Heat flow error (+136). 02195_ The unstable cave ceiling collapses. 02199_ Lgt. Treads destroyed. 02200_ U-05 Engineer Lgt. Ion Engine severed. 02202_ The unstable cave ceiling collapses. 02203_ D-53 Grenadier knocked back. 02204_ U-05 Engineer destroyed. 02206_ Assault Cannon destroyed. 02206_ as-87373 destroyed. 02208_ The unstable cave ceiling collapses. 02208_ Lgt. Cannon destroyed. 02208_ as-42977 destroyed. 02208_ as-08004 destroyed. 02213_ System corrupted: Heat flow error (+111). 02213_ The unstable cave ceiling collapses. 02213_ R-06 Scavenger collects Cmb. Airjet. Map ----- +----------------------------------------------------+ | ????????????????#######??????????????????????????? | | ????????????????# #?????? ???????????????????? | | ????????????????# #?????? #??????????????????? | | ????????????????# #?????? #??????????????????? | | ????????????????# ###### #??????????????????? | | ????????????????# #??????????????????? | | ????????????????# ### ## #??????????????????? | | ???????#????????# #?# #? #??????????????????? | | ???????# ???????#######?# #? #??????????????????? | | ???????# ???????????????# #? #??????????????????? | | ??????# ??????????????# #? #??????????????????? | | #### #?????????????# ## ##?????????????????? | | ####????????## # ##????????????????? | | ????? #####????# #????????????????? | | ??????????# #????# #????????????????? | | ??????????## #????# #????????????????? | | ???????????###### #????## ##????????????????? | | ????????????????# ####### ### #?????????? | | ???????????????##*# #%r #??????????? | | ???????????????# * "" #??????????? | | ???????????????# a %= %! "" ???????? | | ????????????????# %a """ ???????? | | ???????????????## a d ""#####????????? | | ???????????????# #####??????????????? | | ???????????????### ##?????????????????? | | ?????????????????## @ #?????????????????? | | ??????????????????## #????????????????? | | ???????????????????## #????????????????? | | ????????????????????## # ##????????????????? | | ?????????????????????### ### ##?????????????????? | | ???????????????????????##??? #??????????????????? | | ???????????????????????????? ??????????????????? | | ???????????????????????????? ?????????????????? | | ???????????????????????????? ????????????????? | | ????????????????????????????# ???????????????? | | ????????????????????????????? #??????????????? | | ?????????????????????????????# ? ##??????????????? | | ?????????????????????????????????#???????????????? | | ?????????????????????????????????????????????????? | | ?????????????????????????????????????????????????? | | | | | | | | | | | | | | | | | | | | | +----------------------------------------------------+ Best States ------------- Heat Dissipation 25 Energy Generation 10 Energy Capacity 125 Matter Stores 300 Matter Capacity 300 Sight Range 16 Terrain Scan Density 10 Core Shielding 20 Evasion (%) 40 Recoil Reduction 2 Item Schematics ----------------- None Robot Schematics ------------------ None Fabricated ------------ Nothing Repaired ---------- Nothing Studied --------- None Alien Tech Used ----------------- None Achievements -------------- None Challenges ------------ None Game ------ Seed ChromaticMyomerGutpuncher Manual? 0 Play Time 00:09:32 Cumulative 43.9 hours Start 2026.07.12 @ 00:15:54 End 2026.07.12 @ 00:30:31 Sessions 1 Manual Loads 0 Difficulty Rogue Special Mode None Game No. 109 Rogue 109 Adventurer 0 Explorer 0 Win Type - Total 0 Types 0/0/0/0/0/0/0/0/0/0 Lore% 21 Gallery% 29 Achievement% 26 Wizard Run 0 Options --------- Layout 1 ASCII 0 Keyboard 1 Movement Vi Keybinds 0 Fullscreen 1 Font 24/Smallcaps Map View 50x35 Zoom Use 0% Tactical HUD 1 Map Filters NONE Filters NONE Steam 1 RUN: d44b4d1f-bedc-442c-a2df-3a7f67cea3c0